bitfinex-derivatives/quotes_SOLF0:USTF0_20250311
["timestamp","ask_amount","ask_price","bid_price","bid_amount"]
[1741673644309,11.20364635,123.75,123.7,33.66]
[1741673644520,11.20364635,123.75,123.72,8.0829]
[1741673644718,11.20364635,123.75,123.7,33.66]
[1741673645017,11.20364635,123.75,123.7,46.82644241]
[1741673645212,0.05655027,123.74,123.73,8.0826]
[1741673645415,0.05655027,123.74,123.73,33.66]
[1741673645617,11.20364635,123.75,123.73,33.66]
[1741673645921,11.20364635,123.75,123.73,41.7425]
[1741673646220,123.24010993,123.76,123.73,33.66]
[1741673646416,22.72841136,123.76,123.75,8.0814]
[1741673646617,134.44375629,123.77,123.74,13.16644241]
[1741673646821,128.40771276,123.77,123.74,13.16644241]
[1741673647011,128.40771276,123.77,123.74,13.22555666]
[1741673647216,101.15991276,123.77,123.76,13.16644241]
[1741673647517,87.35061276,123.77,123.76,57.32724241]
[1741673648010,87.35061276,123.77,123.76,13.16644241]
[1741673648211,87.35061276,123.77,123.74,33.69911425]
[1741673648415,0.05305647,123.77,123.74,33.69911425]
[1741673649020,0.05305647,123.77,123.74,46.86555666]
[1741673649220,0.05305647,123.77,123.75,8.0813]
[1741673649424,0.05305647,123.77,123.74,46.86555666]
[1741673649718,0.05305647,123.77,123.76,21.24724241]
[1741673649922,8.6219,123.85,123.76,13.16644241]
[1741673650125,8.6219,123.85,123.77,33.64]
[1741673650323,8.6219,123.85,123.78,13.16644241]
[1741673651228,0.05859448,123.83,123.8,0.05731087]
[1741673651425,0.05859448,123.83,123.81,33.64]
[1741673652430,8.13529448,123.83,123.81,33.64]
[1741673652628,0.05859448,123.83,123.81,33.64]
[1741673653338,8.0768,123.82,123.81,33.64]
[1741673653733,8.0768,123.82,123.76,13.16644241]
[1741673653734,0.05859448,123.83,123.78,33.62]
[1741673654141,43.66834241,123.85,123.78,33.62]
[1741673654444,30.5019,123.85,123.78,33.62]
[1741673654837,8.0779,123.81,123.78,33.62]
[1741673655039,8.0779,123.81,123.8,0.05589183]
[1741673656045,33.68242375,123.83,123.75,33.62]
[1741673656343,46.78644241,123.83,123.75,33.62]
[1741673656847,46.78644241,123.83,123.73,33.62]
[1741673657038,46.78644241,123.83,123.72,13.16644241]
[1741673657238,0.05963056,123.79,123.77,0.05500538]
[1741673657438,0.05963056,123.79,123.71,33.62]
[1741673657439,33.67963056,123.79,123.71,33.62]
[1741673657642,33.62,123.79,123.71,33.62]
[1741673657845,4.233,123.78,123.71,33.62]
[1741673658240,4.233,123.78,123.68,13.16644241]
[1741673658439,4.233,123.78,123.69,33.62]
[1741673658645,0.05381991,123.74,123.72,0.0546562]
[1741673659947,8.0827,123.73,123.72,0.0546562]
[1741673660144,0.05381991,123.74,123.72,0.0546562]
[1741673661047,0.05381991,123.74,123.68,46.78644241]
[1741673662047,0.05381991,123.74,123.7,0.06204236]
[1741673662547,8.0828,123.73,123.7,0.06204236]
[1741673662747,0.05381991,123.74,123.7,0.06204236]
[1741673663145,8.13651991,123.74,123.7,0.06204236]
[1741673664146,0.05381991,123.74,123.7,0.06204236]
[1741673665445,33.67381991,123.74,123.65,33.62]
[1741673665948,33.62,123.74,123.65,33.62]
[1741673666559,0.06098411,123.71,123.68,0.06198004]
[1741673667049,0.00597873,123.71,123.7,13.16644241]
[1741673667345,8.5244,123.78,123.7,13.16644241]
[1741673667549,8.5244,123.78,123.71,33.62]
[1741673668342,0.05108931,123.76,123.73,8.14348664]
[1741673668848,0.05108931,123.76,123.73,0.06078664]
[1741673669150,0.05108931,123.76,123.74,41.702]
[1741673669450,0.05108931,123.76,123.74,33.62]
[1741673669751,0.05108931,123.76,123.75,8.0814]
[1741673671741,0.05108931,123.76,123.74,33.62]
[1741673672343,0.05108931,123.76,123.74,33.6]
[1741673674450,0.05108931,123.76,123.73,0.06078664]
[1741673675153,8.13198931,123.76,123.73,0.06078664]
[1741673675448,0.05108931,123.76,123.73,0.06078664]
[1741673677150,8.082,123.75,123.73,0.06078664]
[1741673677354,8.082,123.75,123.72,33.6]
[1741673677742,0.05108931,123.76,123.7,8.0842]
[1741673677954,8.0838,123.72,123.67,41.6864]
[1741673678448,0.05301103,123.71,123.68,0.06232789]
[1741673679049,8.13721103,123.71,123.68,0.06232789]
[1741673679750,0.05301103,123.71,123.68,0.06232789]
[1741673679957,0.05301103,123.71,123.64,87.55459523]
[1741673680155,8.37111103,123.71,123.64,87.55459523]
[1741673680762,4.23061103,123.71,123.66,13.16644241]
[1741673681155,4.23061103,123.71,123.68,8.0856]
[1741673681356,4.23061103,123.71,123.67,0.06085902]
[1741673682545,4.23061103,123.71,123.67,8.14695902]
[1741673683655,4.23061103,123.71,123.67,0.06085902]
[1741673684254,4.23061103,123.71,123.67,8.14695902]
[1741673684853,12.31471103,123.71,123.67,8.14695902]
[1741673685159,0.05301103,123.71,123.68,33.6]
[1741673685554,0.05301103,123.71,123.7,8.0847]
[1741673685753,0.05301103,123.71,123.68,33.6]
[1741673687058,0.05301103,123.71,123.67,0.06085902]
[1741673688962,8.086,123.68,123.67,0.06085902]
[1741673689162,4.1199,123.7,123.62,13.16644241]
[1741673689362,4.1199,123.7,123.62,46.76644241]
[1741673689654,8.0872,123.67,123.62,46.76644241]
[1741673689860,8.0872,123.67,123.63,8.0886]
[1741673690059,4.1199,123.7,123.62,46.76644241]
[1741673690362,0.05168918,123.67,123.65,0.0545899]
[1741673690854,8.13838918,123.67,123.65,0.0545899]
[1741673691457,8.0873,123.66,123.65,0.0545899]
[1741673692355,8.088,123.65,123.6,54.85754241]
[1741673692757,8.088,123.65,123.6,8.0911]
[1741673692954,3.9311,123.68,123.59,121.15459523]
[1741673693151,3.9311,123.68,123.6,13.16644241]
[1741673693352,3.9311,123.68,123.62,13.16644241]
[1741673693550,0.05747567,123.65,123.63,8.14789656]
[1741673694856,0.05747567,123.65,123.63,0.05889656]
[1741673695856,8.14587567,123.65,123.63,0.05889656]
[1741673696559,8.0886,123.64,123.63,0.05889656]
[1741673696764,0.05747567,123.65,123.63,0.05889656]
[1741673698264,8.14557567,123.65,123.63,0.05889656]
[1741673698666,0.05747567,123.65,123.63,0.05889656]
[1741673698963,8.14567567,123.65,123.63,0.05889656]
[1741673699962,8.0886,123.64,123.63,0.05889656]
[1741673700268,0.05747567,123.65,123.58,33.6]
[1741673700560,8.091,123.61,123.58,33.6]
[1741673700965,8.091,123.61,123.56,13.16644241]
[1741673701163,8.0913,123.6,123.56,54.85994241]
[1741673701363,30.93616509,123.6,123.57,0.05195276]
[1741673701569,22.84486509,123.6,123.57,0.05195276]
[1741673701868,8.0923,123.59,123.57,0.05195276]
[1741673702257,30.93646509,123.6,123.57,0.05195276]
[1741673702568,22.84486509,123.6,123.57,0.05195276]
[1741673703864,22.84486509,123.6,123.53,33.6]
[1741673704560,56.44486509,123.6,123.52,134.32103764]
[1741673704771,56.39,123.6,123.52,100.72103764]
[1741673704972,0.05582932,123.57,123.55,0.0606049]
[1741673705872,33.6,123.56,123.5,220.15154401]
[1741673706073,13.16644241,123.5,123.47,254.90421258]
[1741673706368,8.0991,123.48,123.47,202.97551258]
[1741673706670,8.0984,123.49,123.47,202.97551258]
[1741673706862,266.86,123.5,123.47,202.97551258]
[1741673707059,0.05940203,123.49,123.48,21.00928934]
[1741673707667,36.07940203,123.49,123.47,0.0576017]
[1741673707865,13.16644241,123.48,123.46,121.35076983]
[1741673708071,26.33288482,123.48,123.45,121.49416142]
[1741673708274,21.19125168,123.46,123.43,202.97551258]
[1741673708467,33.62,123.45,123.34,3.9057]
[1741673709065,0.0614618,123.41,123.38,0.02662704]
[1741673709673,0.0614618,123.41,123.38,4.31192704]
[1741673709874,763.66260686,123.39,123.38,4.31192704]
[1741673710072,724.59570686,123.39,123.38,12.41752704]
[1741673710271,724.59570686,123.39,123.38,0.02662704]
[1741673711272,385.95040652,123.39,123.38,0.02662704]
[1741673711472,288.50849907,123.39,123.38,10.57222704]
[1741673711675,213.59975777,123.39,123.38,10.57222704]
[1741673711878,45.008547,123.39,123.38,468.63222704]
[1741673712177,9.197047,123.39,123.38,468.63222704]
[1741673712571,8.5409,123.55,123.5,8.0972]
[1741673712767,8.1,123.54,123.51,33.62]
[1741673712972,14.11844404,123.55,123.51,33.62]
[1741673713381,8.1,123.54,123.51,33.62]
[1741673713572,4.3164,123.59,123.51,33.62]
[1741673713775,0.05783708,123.54,123.51,33.68110281]
[1741673714181,0.05783708,123.54,123.51,33.62]
[1741673714383,8.1,123.52,123.51,0.05911508]
[1741673714570,8.1,123.52,123.48,33.62]
[1741673714774,8.1,123.49,123.42,33.62]
[1741673714980,8.1,123.46,123.42,33.62]
[1741673715277,6.01844404,123.49,123.47,8.0997]
[1741673715480,14.11844404,123.49,123.46,33.62]
[1741673715777,4.3153,123.58,123.46,54.81125168]
[1741673716080,8.1,123.55,123.46,54.81125168]
[1741673716281,22.79,123.6,123.52,21.19125168]
[1741673716580,22.79,123.6,123.55,21.19125168]
[1741673716779,22.79,123.6,123.59,8.0919]
[1741673716980,22.79,123.6,123.59,41.7119]
[1741673717175,22.79,123.6,123.59,33.62]
[1741673718173,22.79,123.6,123.59,41.7119]
[1741673718370,2.955e-05,123.61,123.59,70.32462213]
[1741673718575,4.0825,123.75,123.6,267.08]
[1741673718777,34.28462213,123.7,123.59,33.62]
[1741673718982,8.1,123.62,123.59,33.62]
[1741673719184,8.1,123.63,123.59,41.7118]
[1741673719382,8.1,123.62,123.59,33.62]
[1741673719582,8.1,123.61,123.59,33.62]
[1741673719778,8.1,123.6,123.59,0.05183319]
[1741673720281,6.01844404,123.6,123.53,82.40790328]
[1741673720482,8.1,123.54,123.53,48.78790328]
[1741673720984,8.1,123.54,123.53,29.26840328]
[1741673721187,14.11844404,123.54,123.48,67.90462213]
[1741673721385,8.1,123.52,123.48,33.62]
[1741673721880,8.15538936,123.51,123.5,0.05324525]
[1741673722681,14.1738334,123.51,123.5,0.05324525]
[1741673723989,8.15538936,123.51,123.43,65.0505377]
[1741673724288,8.1,123.45,123.43,65.0505377]
[1741673725191,8.16105572,123.45,123.43,65.08906257]
[1741673725387,0.06105572,123.45,123.43,65.08906257]
[1741673725590,0.06105572,123.45,123.44,33.62]
[1741673726483,37.7641,123.53,123.44,33.62]
[1741673726690,8.1,123.48,123.44,33.62]
[1741673727087,4.1441,123.53,123.44,33.62]
[1741673727285,8.1,123.45,123.42,4.2229]
[1741673727495,8.1,123.45,123.42,33.62]
[1741673727789,14.17123879,123.45,123.42,33.67560653]
[1741673728096,0.05279475,123.45,123.42,33.67560653]
[1741673729194,8.4304,123.53,123.42,33.67560653]
[1741673729394,8.1,123.48,123.42,33.67560653]
[1741673729584,8.1,123.48,123.42,33.62]
[1741673729789,4.1441,123.53,123.42,258.90462213]
[1741673729993,20.71,123.55,123.45,34.28462213]
[1741673730288,28.81,123.55,123.48,34.28462213]
[1741673730492,20.71,123.55,123.51,34.28462213]
[1741673730692,0.00842307,123.53,123.52,37.9297]
[1741673730901,20.71,123.55,123.52,37.9297]
[1741673731087,26.72844404,123.55,123.52,33.64]
[1741673731287,8.1,123.53,123.52,33.64]
[1741673731488,26.72844404,123.55,123.52,33.64]
[1741673731697,8.1,123.54,123.52,33.64]
[1741673731893,26.72844404,123.55,123.52,33.64]
[1741673731894,20.71,123.55,123.52,33.64]
[1741673732100,1.708e-05,123.54,123.52,33.6996223]
[1741673732289,8.3922,123.65,123.53,34.28462213]
[1741673732494,8.1,123.6,123.53,34.28462213]
[1741673732989,37.6654,123.68,123.59,34.28462213]
[1741673732990,4.0454,123.68,123.59,34.28462213]
[1741673733190,8.1,123.67,123.6,33.62]
[1741673733392,4.28,123.73,123.6,33.62]
[1741673733393,12.3627,123.73,123.65,8.0873]
[1741673733696,8.1,123.67,123.62,34.28462213]
[1741673733900,8.1,123.66,123.63,33.62]
[1741673734201,4.28,123.73,123.63,33.67188293]
[1741673734401,0.05261129,123.66,123.64,8.0886]
[1741673734593,0.05261129,123.66,123.63,33.62]
[1741673734789,4.28,123.73,123.64,0.0593305]
[1741673734990,4.138e-05,123.66,123.65,42.37202213]
[1741673735199,8.1,123.71,123.65,68.22462213]
[1741673735394,8.1,123.71,123.65,33.94]
[1741673735594,8.1,123.69,123.65,33.94]
[1741673735799,8.1,123.67,123.65,33.94]
[1741673736198,8.1,123.66,123.65,34.00151692]
[1741673736598,0.05420007,123.67,123.65,34.00151692]
[1741673736798,8.1,123.66,123.65,34.00151692]
[1741673737200,0.05420007,123.67,123.65,34.00151692]
[1741673737401,7e-08,123.67,123.65,70.70613905]
[1741673737796,7e-08,123.67,123.65,76.37353905]
[1741673738397,7e-08,123.67,123.65,68.28613905]
[1741673738701,7e-08,123.67,123.66,34.06]
[1741673739001,8.10000007,123.67,123.66,34.06]
[1741673739704,7e-08,123.67,123.66,34.06]
[1741673739899,8.10000007,123.67,123.66,34.06]
[1741673740405,8.10000007,123.67,123.65,0.06151692]
[1741673740406,14.11844411,123.67,123.65,0.06151692]
[1741673740606,8.1,123.66,123.63,34.18]
[1741673740800,8.1,123.64,123.63,34.18]
[1741673741104,8.1,123.64,123.55,225.28462213]
[1741673741293,6.01844404,123.64,123.56,34.22]
[1741673741498,8.1,123.59,123.57,8.0931]
[1741673741697,14.10764404,123.64,123.53,266.84]
[1741673741698,8.1,123.58,123.53,266.84]
[1741673741898,8.1,123.58,123.57,0.05416016]
[1741673742102,0.05422142,123.59,123.55,34.28462213]
[1741673742302,0.05422142,123.59,123.56,0.0546246]
[1741673742602,0.05422142,123.59,123.57,34.3]
[1741673743003,8.1,123.58,123.57,34.3]
[1741673743706,0.05422142,123.59,123.57,34.3]
[1741673744005,8.1,123.58,123.57,34.3]
[1741673744204,8.1,123.58,123.56,0.0546246]
[1741673744402,8.1,123.57,123.56,0.0546246]
[1741673744600,8.094,123.56,123.51,117.02787069]
[1741673744906,8.1,123.53,123.51,117.02787069]
[1741673745503,8.1,123.52,123.5,34.24]
[1741673745899,8.15874169,123.52,123.5,34.29331596]
[1741673746303,8.15874169,123.52,123.51,34.24]
[1741673746498,8.15874169,123.52,123.5,0.05331596]
[1741673746701,8.15874169,123.52,123.51,34.22]
[1741673747011,8.1,123.51,123.5,0.05331596]
[1741673747505,14.11844404,123.51,123.47,34.18]
[1741673747711,14.11844404,123.51,123.4,266.92]
[1741673747712,8.1,123.48,123.4,266.92]
[1741673748005,8.1,123.46,123.41,34.22]
[1741673748209,8.1,123.47,123.42,34.28462213]
[1741673748513,8.1,123.46,123.43,8.1017]
[1741673748714,8.15972979,123.46,123.43,0.05906236]
[1741673749013,0.05972979,123.46,123.44,34.18]
[1741673749711,34.28462213,123.57,123.45,34.28462213]
[1741673749911,8.1,123.51,123.45,34.28462213]
[1741673750115,8.1,123.53,123.48,34.28462213]
[1741673750413,8.1,123.52,123.45,34.28462213]
[1741673750613,8.1,123.5,123.46,34.2]
[1741673750813,8.1,123.48,123.46,34.2]
[1741673751112,8.15203689,123.49,123.47,0.05869083]
[1741673751314,0.05203689,123.49,123.47,0.05869083]
[1741673751517,8.15203689,123.49,123.47,0.05869083]
[1741673751712,8.1,123.48,123.47,0.05869083]
[1741673752208,8.1,123.48,123.47,8.15839083]
[1741673752606,0.05203689,123.49,123.48,8.0991]
[1741673753116,3.689e-05,123.49,123.48,8.0991]
[1741673754313,8.3945,123.59,123.54,8.095]
[1741673754516,8.1,123.55,123.54,8.095]
[1741673754709,8.1,123.55,123.54,42.315]
[1741673754905,8.3945,123.59,123.54,34.22]
[1741673755110,8.1,123.55,123.54,34.22]
[1741673755510,6.01844404,123.55,123.51,34.28]
[1741673755712,8.0953,123.54,123.53,0.0516285]
[1741673755906,8.1,123.54,123.51,34.28]
[1741673756105,8.1,123.52,123.48,34.26]
[1741673756312,8.1,123.5,123.48,34.26]
[1741673756510,8.1,123.49,123.48,34.26]
[1741673757004,34.28462213,123.56,123.48,34.26]
[1741673757206,8.1,123.49,123.47,0.05444585]
[1741673757513,8.1,123.48,123.46,34.26]
[1741673757813,0.06098005,123.49,123.47,0.05410276]
[1741673758213,8.1,123.48,123.46,34.26]
[1741673758414,8.1,123.47,123.46,34.26]
[1741673758711,8.1,123.48,123.46,34.31499489]
[1741673759111,6.0715476,123.49,123.46,34.31499489]
[1741673759315,0.05310356,123.49,123.46,34.31499489]
[1741673760406,3.56e-06,123.49,123.46,34.31499489]
[1741673761411,8.3945,123.59,123.47,301.34462213]
[1741673761611,8.1,123.58,123.51,34.28462213]
[1741673761916,8.1,123.58,123.52,38.4048]
[1741673762313,12.6916,123.64,123.52,38.4048]
[1741673762514,8.1,123.58,123.52,38.4048]
[1741673762715,8.1,123.58,123.57,0.05258078]
[1741673762917,8.1,123.58,123.57,34.32]
[1741673763317,14.11844404,123.58,123.56,0.05694972]
[1741673763512,8.1,123.57,123.56,0.05694972]
[1741673763914,6.01844404,123.57,123.56,0.05694972]
[1741673764310,0.05676507,123.59,123.56,8.15074972]
[1741673764513,8.1,123.57,123.56,8.15074972]
[1741673764811,8.1,123.57,123.56,34.35694972]
[1741673765114,0.05676507,123.59,123.56,34.35694972]
[1741673765614,6.507e-05,123.59,123.58,8.0925]
[1741673766317,11.89996507,123.6,123.56,68.64157185]
[1741673766716,11.89996507,123.6,123.56,34.35694972]
[1741673767111,17.91840911,123.6,123.56,0.05694972]
[1741673767316,0.06069048,123.59,123.56,0.05694972]
[1741673767512,4.17559048,123.59,123.56,0.05694972]
[1741673767720,8.0927,123.58,123.56,0.05694972]
[1741673767913,10.19403452,123.59,123.56,0.05694972]
[1741673768113,0.06069048,123.59,123.56,0.05694972]
[1741673768619,267.0,123.71,123.56,227.76157185]
[1741673768821,6.01844404,123.68,123.59,34.28462213]
[1741673769119,6.01844404,123.68,123.6,34.5]
[1741673769917,0.05823372,123.65,123.63,0.06000735]
[1741673770120,0.05823372,123.65,123.64,34.46]
[1741673770514,0.05823372,123.65,123.64,42.5486]
[1741673770920,0.05823372,123.65,123.64,34.46]
[1741673771121,6.07667776,123.65,123.64,34.46]
[1741673771521,14.16457776,123.65,123.64,34.46]
[1741673772015,6.07667776,123.65,123.63,0.06000735]
[1741673772217,8.0886,123.64,123.63,0.06000735]
[1741673772523,34.28462213,123.64,123.57,34.42]
[1741673772716,8.0932,123.57,123.52,16.242]
[1741673773025,34.28462213,123.64,123.53,34.42]
[1741673773622,0.05597975,123.6,123.57,0.06099727]
[1741673773923,8.0925,123.58,123.57,0.06099727]
[1741673774226,0.05597975,123.6,123.53,34.42]
[1741673774719,34.42,123.62,123.54,34.4]
[1741673775517,0.05998206,123.59,123.57,0.05481589]
[1741673775723,0.05998206,123.59,123.57,34.41481589]
[1741673778025,0.05998206,123.59,123.57,0.05481589]
[1741673778428,0.05998206,123.59,123.53,34.32]
[1741673779425,8.0938,123.57,123.53,34.32]
[1741673779630,8.0938,123.57,123.55,0.05778257]
[1741673779822,0.05197673,123.56,123.55,0.05778257]
[1741673780827,8.14577673,123.56,123.55,0.05778257]
[1741673781030,0.05197673,123.56,123.55,0.05778257]
[1741673783337,8.14577673,123.56,123.55,0.05778257]
[1741673785436,0.05197673,123.56,123.55,0.05778257]
[1741673786134,8.0907,123.61,123.55,0.05778257]
[1741673786338,34.28462213,123.64,123.55,0.05778257]
[1741673786637,34.28462213,123.64,123.54,34.1]
[1741673786936,34.28462213,123.61,123.54,34.1]
[1741673787136,8.0943,123.56,123.54,34.1]
[1741673787531,4.02755303,123.59,123.54,34.1]
[1741673787733,12.3061,123.59,123.54,34.15286445]
[1741673787933,0.05416994,123.58,123.54,34.15286445]
[1741673788336,0.05416994,123.58,123.54,0.05286445]
[1741673789242,34.2,123.57,123.54,0.05286445]
[1741673789436,34.2,123.57,123.54,6.445e-05]
[1741673789640,34.2,123.57,123.49,34.2]
[1741673790146,8.0964,123.53,123.49,42.2983]
[1741673790540,8.0947,123.55,123.49,34.2]
[1741673790744,0.05155716,123.52,123.5,0.05355944]
[1741673791036,8.0956,123.54,123.5,0.05355944]
[1741673791235,0.05158456,123.52,123.5,0.05355944]
[1741673791436,12.3061,123.59,123.5,0.05355944]
[1741673791640,0.05390367,123.52,123.49,34.18]
[1741673791837,12.3061,123.59,123.53,0.0586316]
[1741673792245,0.0589841,123.55,123.53,0.0586316]
[1741673793043,0.0589841,123.55,123.53,8.1540316]
[1741673793240,3.9727,123.59,123.53,0.0586316]
[1741673793942,8.3402,123.58,123.53,0.0586316]
[1741673794143,8.0934,123.57,123.53,0.0586316]
[1741673794339,8.3402,123.58,123.53,0.0586316]
[1741673794546,0.06095051,123.56,123.53,0.0586316]
[1741673794746,8.0951,123.54,123.53,0.0586316]
[1741673795245,8.0946,123.55,123.53,0.0586316]
[1741673796036,8.15505051,123.56,123.53,0.0586316]
[1741673797148,0.06095051,123.56,123.53,0.0586316]
[1741673798148,8.0945,123.55,123.53,0.0586316]
[1741673799350,8.15515051,123.56,123.53,0.0586316]
[1741673799551,0.06095051,123.56,123.53,0.0586316]
[1741673801250,8.0951,123.54,123.53,0.0586316]
[1741673801457,0.06095051,123.56,123.53,0.0586316]
[1741673801752,8.0951,123.54,123.53,0.0586316]
[1741673802143,8.0947,123.55,123.53,0.0586316]
[1741673802350,0.06095051,123.56,123.53,0.0586316]
[1741673802957,8.15495051,123.56,123.53,0.0586316]
[1741673803151,0.06095051,123.56,123.53,0.0586316]
[1741673803557,0.06095051,123.56,123.53,8.1538316]
[1741673804053,0.06095051,123.56,123.55,8.0945]
[1741673804246,0.06095051,123.56,123.53,0.0586316]
[1741673804849,0.06095051,123.56,123.53,8.1541316]
[1741673805049,0.06095051,123.56,123.53,0.0586316]
[1741673806560,8.0951,123.54,123.53,3.16e-05]
[1741673809067,42.44870284,123.54,123.53,3.16e-05]
[1741673809464,46.77290284,123.54,123.53,3.16e-05]
[1741673810661,38.67780284,123.54,123.44,88.15058961]
[1741673810863,8.1,123.48,123.44,88.15058961]
[1741673811162,38.67780284,123.54,123.44,88.15058961]
[1741673811461,8.0997,123.49,123.44,96.25268961]
[1741673811866,0.05775342,123.48,123.45,0.05152777]
[1741673812062,0.05775342,123.48,123.45,8.15332777]
[1741673812269,0.05775342,123.48,123.45,0.05152777]
[1741673813765,8.15785342,123.48,123.45,0.05152777]
[1741673813955,0.05775342,123.48,123.45,0.05152777]
[1741673815871,8.15785342,123.48,123.45,0.05152777]
[1741673816770,8.1005,123.47,123.45,0.05152777]
[1741673817474,0.05775342,123.48,123.45,0.05152777]
[1741673819172,8.15765342,123.48,123.45,0.05152777]
[1741673820275,0.05775342,123.48,123.46,8.1008]
[1741673820472,0.05775342,123.48,123.45,0.05152777]
[1741673820876,8.1012,123.46,123.45,0.05152777]
[1741673821069,4.0141,123.47,123.39,267.04]
[1741673821379,8.1025,123.44,123.41,8.1045]
[1741673821572,8.1025,123.44,123.4,34.0]
[1741673821976,8.1033,123.43,123.39,267.04]
[1741673822176,0.06210981,123.43,123.41,0.06007243]
[1741673823980,33.88,123.53,123.42,33.88]
[1741673824276,42.2424,123.53,123.42,38.2133]
[1741673824477,8.099,123.5,123.45,8.1017]
[1741673824676,8.099,123.5,123.45,33.92]
[1741673824882,42.2424,123.53,123.45,33.92]
[1741673825073,42.2424,123.53,123.42,38.2733]
[1741673825270,0.05507425,123.5,123.42,33.94]
[1741673825474,8.1003,123.48,123.44,8.1024]
[1741673825677,33.94,123.51,123.42,33.94]
[1741673826074,33.94,123.51,123.44,8.1024]
[1741673826377,8.3624,123.53,123.45,33.9]
[1741673826575,0.05163224,123.49,123.46,33.9563982]
[1741673827384,34.35360284,123.58,123.46,33.9563982]
[1741673827577,34.35360284,123.58,123.47,4.1471]
[1741673828276,34.35360284,123.55,123.46,33.9]
[1741673828480,46.5858,123.54,123.46,33.9]
[1741673828979,0.05335087,123.51,123.49,0.05482789]
[1741673829779,8.1025,123.44,123.43,88.15058961]
[1741673830277,21.18119115,123.46,123.42,147.82758555]
[1741673830479,38.273,123.45,123.41,204.18625769]
[1741673830676,21.18119115,123.43,123.41,173.63005769]
[1741673830874,8.1045,123.41,123.4,219.14040819]
[1741673831177,8.1045,123.41,123.4,163.75400819]
[1741673831885,8.1045,123.41,123.4,124.96980819]
[1741673832084,8.1045,123.41,123.4,69.25940819]
[1741673832586,10.5445,123.41,123.4,18.78267929]
[1741673832978,21.18119115,123.4,123.33,8.3378]
[1741673833185,34.0,123.39,123.33,8.3378]
[1741673833579,8.1077,123.37,123.33,8.3378]
[1741673833777,34.0,123.39,123.33,8.3378]
[1741673834186,0.05359929,123.37,123.35,0.05589355]
[1741673834786,8.1078,123.36,123.35,0.05589355]
[1741673835180,8.16079929,123.37,123.35,0.05589355]
[1741673835386,0.05359929,123.37,123.35,0.05589355]
[1741673836389,8.16079929,123.37,123.35,0.05589355]
[1741673836590,0.05359929,123.37,123.35,0.05589355]
[1741673836887,8.1078,123.36,123.35,0.05589355]
[1741673838195,44.5078,123.36,123.35,9.355e-05]
[1741673838388,33.96,123.36,123.35,9.355e-05]
[1741673838989,42.0678,123.36,123.35,9.355e-05]
[1741673840094,33.96,123.36,123.35,9.355e-05]
[1741673840294,8.16079929,123.37,123.35,9.355e-05]
[1741673840500,42.06079929,123.37,123.35,9.355e-05]
[1741673840698,33.95359929,123.37,123.35,9.355e-05]
[1741673841091,0.05359929,123.37,123.29,33.92]
[1741673841297,81.07579012,123.39,123.32,33.9]
[1741673841498,81.07579012,123.39,123.33,4.2522]
[1741673841796,44.71216586,123.4,123.34,8.109]
[1741673842191,0.05259822,123.38,123.36,0.05826814]
[1741673842391,8.1072,123.37,123.36,0.05826814]
[1741673843501,0.05259822,123.38,123.36,0.05826814]
[1741673844095,0.05259822,123.38,123.37,8.1071]
[1741673844490,0.05259822,123.38,123.37,12.3968]
[1741673844693,0.05259822,123.38,123.37,4.2897]
[1741673844891,0.05259822,123.38,123.36,8.50556814]
[1741673844892,0.05259822,123.38,123.36,0.05826814]
[1741673846704,8.1071,123.37,123.36,6.814e-05]
[1741673847497,0.05259822,123.38,123.36,6.814e-05]
[1741673848300,108.62735888,123.37,123.36,8.1071]
[1741673848501,13.70875888,123.37,123.36,8.1071]
[1741673848696,82.84064533,123.38,123.36,8.1071]
[1741673848900,82.84064533,123.38,123.35,12.5499]
[1741673848901,76.32854533,123.38,123.37,41.8871]
[1741673849104,76.32854533,123.38,123.37,33.78]
[1741673849404,11.13920546,123.39,123.37,33.78]
[1741673849597,11.13920546,123.39,123.38,8.1065]
[1741673849797,5.46e-06,123.39,123.38,8.1065]
[1741673850003,121.03253234,123.42,123.38,21.18119115]